[Event "AUT-ch U16-Open 2025"]
[Site "Fuerstenfeld"]
[Date "2025.04.13"]
[Round "1.1"]
[White "Stickler, Florentin"]
[Black "Keller, Niklas"]
[Result "1-0"]
[Annotator "ChessBase"]
[ECO "B15"]
[WhiteElo "2189"]
[BlackElo "1888"]
[PlyCount "87"]
[EventDate "2025.04.12"]
[EventType "swiss"]
[EventCountry "AUT"]
[SourceTitle "playchess.com"]
[Source "ChessBase"]
[SourceQuality "1"]
[TimeControl "5400+30"]

1. e4 {[%emt 0:00:03]} c6 {[%emt 0:00:06]} 2. d4 {[%emt 0:00:03]} d5 {[%emt 0:00:07]} 3. Nc3 {[%emt 0:00:03]} dxe4 {[%emt 0:00:12]} 4. Nxe4 {[%emt 0:00:02]} Nf6 {[%emt 0:00:13]} 5. Nxf6+ {[%emt 0:00:11]} exf6 {[%emt 0:00:17]} 6. c3 {[%emt 0:00:03]} Bd6 {[%emt 0:00:18]} 7. Bd3 {[%emt 0:00:06]} O-O {[%emt 0:00:44]} 8. Qc2 {[%emt 0:00:09]} Re8+ {[%emt 0:01:20]} 9. Ne2 {[%emt 0:00:49]} h6 {[%emt 0:05:44]} 10. O-O {[%emt 0:00:10]} Nd7 {[%emt 0:00:08]} 11. Be3 {[%emt 0:02:48]} Nf8 {[%emt 0:01:10]} 12. Rfe1 {[%emt 0:02:00]} Be6 {[%emt 0:04:49]} 13. Ng3 {[%emt 0:09:56]} Bxg3 {[%emt 0:07:47]} 14. hxg3 {[%emt 0:00:47]} Bg4 {[%emt 0:03:16]} 15. Bf5 {[%emt 0:07:07]} Bxf5 {[%emt 0:02:15]} 16. Qd3 {[%emt 1:14:13]} Be4 17. Qxe4 {[%emt 0:00:00]} Qd5 {[%emt 0:03:20]} 18. Qd3 {[%emt 0:00:00]} Ne6 {[%emt 0:12:45]} 19. c4 {[%emt 0:00:00]} Qd7 {[%emt 0:01:41]} 20. Rad1 {[%emt 0:00:00]} Rad8 {[%emt 0:08:39]} 21. Qc3 {[%emt 0:00:00]} b6 {[%emt 0:04:07]} 22. b4 {[%emt 0:00:00]} Qb7 {[%emt 0:01:28]} 23. a4 {[%emt 0:00:00]} Ng5 {[%emt 0:02:52]} 24. b5 {[%emt 0:00:00]} Ne4 {[%emt 0:03:45]} 25. Qb3 {[%emt 0:00:00]} Rc8 {[%emt 0:05:24]} 26. Rc1 {[%emt 0:00:00]} c5 {[%emt 0:00:51]} 27. d5 {[%emt 0:00:00]} Qd7 {[%emt 0:07:21]} 28. Rcd1 {[%emt 0:00:00]} Nd6 {[%emt 0:01:03]} 29. f3 {[%emt 0:00:00]} Ra8 {[%emt 0:01:21]} 30. a5 {[%emt 0:00:00]} Reb8 {[%emt 0:02:30]} 31. Ra1 {[%emt 0:00:00]} Qc7 {[%emt 0:04:18]} 32. axb6 {[%emt 0:00:00]} axb6 {[%emt 0:00:57]} 33. Qc3 {[%emt 0:00:00]} Qd8 {[%emt 0:04:51]} 34. Bf4 {[%emt 0:00:00]} g5 {[%emt 0:00:56]} 35. Bd2 {[%emt 0:00:00]} Kg7 {[%emt 0:01:42]} 36. f4 {[%emt 0:00:00]} g4 {[%emt 0:00:27]} 37. Qd3 {[%emt 0:00:00]} Qd7 {[%emt 0:01:36]} 38. f5 {[%emt 0:00:04]} Qxf5 {[%emt 0:00:56]} 39. Qxf5 {[%emt 0:00:21]} Nxf5 {[%emt 0:00:20]} 40. Bf4 {[%emt 0:00:01]} Rd8 {[%emt 0:01:24]} 41. Bc7 {[%emt 0:01:13]} Rdb8 {[%emt 0:03:47]} 42. d6 {[%emt 0:01:02]} Nd4 {[%emt 0:02:05]} 43. Rxa8 {[%emt 0:00:11]} Rxa8 {[%emt 0:00:10]} 44. d7 {[%emt 0:00:05]} 1-0

[Event "AUT-ch U16-Open 2025"]
[Site "Fuerstenfeld"]
[Date "2025.04.13"]
[Round "1.2"]
[White "Brown, Julian"]
[Black "Prober, Raphael"]
[Result "1/2-1/2"]
[Annotator "NA"]
[ECO "B45"]
[WhiteElo "1873"]
[BlackElo "2131"]
[PlyCount "86"]
[EventDate "2025.04.12"]
[EventType "swiss"]
[EventCountry "AUT"]
[SourceTitle "playchess.com"]
[Source "ChessBase"]
[SourceQuality "1"]
[TimeControl "5400+30"]

1. e4 {[%emt 0:00:01]} c5 {[%emt 0:00:11]} 2. Nf3 {[%emt 0:00:02]} Nc6 {[%emt 0:00:09]} 3. d4 {[%emt 0:00:02]} cxd4 {[%emt 0:00:08]} 4. Nxd4 {[%emt 0:00:02]} e6 {[%emt 0:00:13]} 5. Nc3 {[%emt 0:00:06]} Bc5 {[%emt 0:00:26]} 6. Nb3 {[%emt 0:02:43]} Bb4 {[%emt 0:00:17]} 7. Be2 {[%emt 0:04:33]} Nf6 {[%emt 0:00:42]} 8. Bf3 {[%emt 0:02:01]} O-O {[%emt 0:06:27]} 9. O-O {[%emt 0:00:30]} Qc7 {[%emt 0:16:25]} 10. Ne2 {[%emt 0:10:26]} Ne5 {[%emt 0:03:05]} 11. Ned4 {[%emt 0:00:51]} Nxf3+ {[%emt 0:09:20]} 12. Qxf3 {[%emt 0:02:10]} d5 {[%emt 0:01:29]} 13. exd5 {[%emt 0:02:12]} Nxd5 {[%emt 0:09:46]} 14. c3 {[%emt 0:00:56]} Be7 {[%emt 0:00:20]} 15. Nf5 {[%emt 0:07:39]} Bf6 {[%emt 0:04:38]} 16. Ng3 {[%emt 0:01:26]} b5 {[%emt 0:02:08]} 17. Re1 {[%emt 0:19:38]} Bb7 {[%emt 0:00:22]} 18. Ne4 {[%emt 0:06:13]} Be7 {[%emt 0:06:00]} 19. Qe2 {[%emt 0:02:19]} a6 {[%emt 0:01:41]} 20. Bd2 {[%emt 0:02:37]} h6 {[%emt 0:05:23]} 21. Rac1 {[%emt 0:00:52]} Rac8 {[%emt 0:01:48]} 22. Red1 {[%emt 0:01:12]} Nf4 {[%emt 0:02:09]} 23. Qg4 {[%emt 0:01:07]} Ng6 {[%emt 0:03:15]} 24. Nd4 {[%emt 0:03:30]} Ne5 {[%emt 0:04:27]} 25. Qe2 {[%emt 0:02:17]} Qc4 {[%emt 0:01:32]} 26. Ng3 {[%emt 0:03:27]} Qd5 {[%emt 0:01:50]} 27. f3 {[%emt 0:01:22]} Nc4 {[%emt 0:00:20]} 28. Be1 {[%emt 0:00:46]} Bg5 {[%emt 0:01:33]} 29. Rb1 {[%emt 0:02:16]} h5 {[%emt 0:01:13]} 30. Bf2 {[%emt 0:00:45]} h4 {[%emt 0:02:21]} 31. Ne4 {[%emt 0:01:01]} Be7 {[%emt 0:00:26]} 32. h3 {[%emt 0:00:38]} Qe5 {[%emt 0:02:44]} 33. Re1 {[%emt 0:01:45]} Bxe4 {[%emt 0:00:29]} 34. Qxe4 {[%emt 0:00:40]} Qxe4 {[%emt 0:00:48]} 35. fxe4 {[%emt 0:00:11]} Ne5 {[%emt 0:00:33]} 36. Rbd1 {[%emt 0:00:27]} g5 {[%emt 0:01:23]} 37. Nf3 {[%emt 0:00:25]} Ng6 {[%emt 0:03:32]} 38. Be3 {[%emt 0:00:46]} f6 {[%emt 0:00:26]} 39. Rd7 {[%emt 0:00:23]} Rfd8 {[%emt 0:01:14]} 40. Red1 {[%emt 0:00:24]} Rxd7 {[%emt 0:00:40]} 41. Rxd7 {[%emt 0:00:01]} Rd8 {[%emt 0:00:09]} 42. Ra7 {[%emt 0:00:42]} Rd6 {[%emt 0:00:13]} 43. Kf2 {[%emt 0:02:35]} Rc6 {[%emt 0:02:00]} 1/2-1/2

[Event "AUT-ch U16-Open 2025"]
[Site "Fuerstenfeld"]
[Date "2025.04.13"]
[Round "1.3"]
[White "Pausweg, Daniel"]
[Black "Roessler, Felix"]
[Result "1-0"]
[Annotator "NA"]
[ECO "E01"]
[WhiteElo "2080"]
[BlackElo "1840"]
[PlyCount "87"]
[EventDate "2025.04.12"]
[EventType "swiss"]
[EventCountry "AUT"]
[SourceTitle "playchess.com"]
[Source "ChessBase"]
[SourceQuality "1"]
[TimeControl "5400+30"]

1. c4 {[%emt 0:00:03]} Nf6 {[%emt 0:00:06]} 2. Nf3 {[%emt 0:00:11]} e6 {[%emt 0:00:00]} 3. d4 {[%emt 0:00:00]} d5 {[%emt 0:00:00]} 4. g3 {[%emt 0:00:00]} Ne4 {[%emt 0:00:03]} 5. Bg2 {[%emt 0:01:09]} Be7 {[%emt 0:00:25]} 6. Nbd2 {[%emt 0:00:59]} f5 {[%emt 0:00:29]} 7. O-O {[%emt 0:04:09]} Nc6 {[%emt 0:00:40]} 8. e3 {[%emt 0:01:52]} Bf6 {[%emt 0:02:15]} 9. Qc2 {[%emt 0:02:03]} h5 {[%emt 0:01:20]} 10. Ne1 {[%emt 0:05:49]} h4 {[%emt 0:03:42]} 11. Nxe4 {[%emt 0:03:41]} fxe4 {[%emt 0:00:10]} 12. f3 {[%emt 0:07:28]} hxg3 {[%emt 0:00:50]} 13. hxg3 {[%emt 0:01:14]} Nxd4 {[%emt 0:06:06]} 14. exd4 {[%emt 0:00:14]} Bxd4+ {[%emt 0:00:38]} 15. Rf2 {[%emt 0:00:10]} O-O {[%emt 0:10:39]} 16. Qe2 {[%emt 0:04:16]} Bxf2+ {[%emt 0:02:38]} 17. Kxf2 {[%emt 0:00:18]} c6 {[%emt 0:01:18]} 18. Kg1 {[%emt 0:00:55]} Qb6+ {[%emt 0:02:37]} 19. Qe3 {[%emt 0:02:49]} exf3 {[%emt 0:06:02]} 20. Nxf3 {[%emt 0:02:55]} Qxe3+ {[%emt 0:01:18]} 21. Bxe3 {[%emt 0:00:16]} b6 {[%emt 0:01:53]} 22. Ne5 {[%emt 0:04:15]} Bb7 {[%emt 0:01:21]} 23. Bh3 {[%emt 0:03:57]} Rae8 {[%emt 0:01:32]} 24. c5 {[%emt 0:01:05]} b5 {[%emt 0:05:37]} 25. a4 {[%emt 0:07:00]} bxa4 {[%emt 0:00:28]} 26. Rxa4 {[%emt 0:00:25]} a6 {[%emt 0:00:34]} 27. Bf4 {[%emt 0:02:13]} Kh7 {[%emt 0:05:13]} 28. Kg2 {[%emt 0:05:05]} g6 {[%emt 0:04:31]} 29. Nd3 {[%emt 0:01:26]} Rf7 {[%emt 0:04:15]} 30. Bd6 {[%emt 0:00:28]} Rf6 {[%emt 0:01:42]} 31. Ne5 {[%emt 0:00:45]} g5 {[%emt 0:01:03]} 32. Rb4 {[%emt 0:00:33]} Ba8 {[%emt 0:02:16]} 33. Rb6 {[%emt 0:00:58]} Rg8 {[%emt 0:01:55]} 34. Rxa6 {[%emt 0:01:20]} Bb7 {[%emt 0:00:13]} 35. Rb6 {[%emt 0:01:19]} Rg7 {[%emt 0:00:16]} 36. Bg4 {[%emt 0:01:18]} Kg8 {[%emt 0:01:34]} 37. b4 {[%emt 0:02:32]} Rh7 {[%emt 0:00:49]} 38. b5 {[%emt 0:04:39]} cxb5 {[%emt 0:01:59]} 39. c6 {[%emt 0:00:50]} Bxc6 {[%emt 0:00:25]} 40. Rxc6 {[%emt 0:01:39]} Rb7 {[%emt 0:00:15]} 41. Bb4 {[%emt 0:00:37]} Ra7 {[%emt 0:01:21]} 42. Bxe6+ {[%emt 0:04:00]} Kg7 {[%emt 0:01:30]} 43. Bxd5 {[%emt 0:01:06]} Ra2+ {[%emt 0:00:43]} 44. Bxa2 {[%emt 0:00:11]} 1-0

[Event "AUT-ch U16-Open 2025"]
[Site "Fuerstenfeld"]
[Date "2025.04.13"]
[Round "1.4"]
[White "Hellerschmid, Andreas"]
[Black "Chen, Chicheng Leon"]
[Result "1-0"]
[Annotator "NA"]
[ECO "D70"]
[WhiteElo "1835"]
[BlackElo "2021"]
[PlyCount "51"]
[EventDate "2025.04.12"]
[EventType "swiss"]
[EventCountry "AUT"]
[SourceTitle "playchess.com"]
[Source "ChessBase"]
[SourceQuality "1"]
[TimeControl "5400+30"]

1. d4 {[%emt 0:00:02]} Nf6 {[%emt 0:00:18]} 2. c4 {[%emt 0:00:10]} g6 {[%emt 0:01:48]} 3. f3 {[%emt 0:00:08]} d5 {[%emt 0:00:14]} 4. cxd5 {[%emt 0:00:09]} Nxd5 {[%emt 0:00:09]} 5. e4 {[%emt 0:00:06]} Nb6 {[%emt 0:00:03]} 6. Nc3 {[%emt 0:00:16]} Bg7 {[%emt 0:01:35]} 7. Be3 {[%emt 0:00:07]} Nc6 {[%emt 0:06:22]} 8. d5 {[%emt 0:00:25]} Na5 {[%emt 0:08:52]} 9. Bd4 {[%emt 0:07:54]} O-O {[%emt 0:12:02]} 10. Bxg7 {[%emt 0:01:07]} Kxg7 {[%emt 0:00:05]} 11. b4 {[%emt 0:01:19]} Nac4 {[%emt 0:15:06]} 12. Bxc4 {[%emt 0:00:09]} Qd6 {[%emt 0:01:56]} 13. Qb3 {[%emt 0:03:42]} Qf4 {[%emt 0:01:06]} 14. Nge2 {[%emt 0:03:27]} Qe3 {[%emt 0:00:27]} 15. Nd1 {[%emt 0:02:40]} Qg5 {[%emt 0:00:34]} 16. O-O {[%emt 0:03:42]} Bd7 {[%emt 0:03:06]} 17. Qb2+ {[%emt 0:03:23]} Kg8 {[%emt 0:00:32]} 18. Bb3 {[%emt 0:00:27]} Bb5 {[%emt 0:00:20]} 19. a4 {[%emt 0:01:23]} Bd3 {[%emt 0:00:46]} 20. Rf2 {[%emt 0:02:15]} a5 {[%emt 0:00:32]} 21. b5 {[%emt 0:01:28]} h5 {[%emt 0:04:28]} 22. Nd4 {[%emt 0:02:49]} Bc4 {[%emt 0:03:33]} 23. Bxc4 {[%emt 0:01:28]} Nxc4 {[%emt 0:00:07]} 24. Qc1 {[%emt 0:00:36]} Qxc1 {[%emt 0:04:00]} 25. Rxc1 {[%emt 0:00:03]} Nb6 {[%emt 0:00:05]} 26. Nb2 {[%emt 0:00:13]} 1-0

[Event "AUT-ch U16-Open 2025"]
[Site "Fuerstenfeld"]
[Date "2025.04.13"]
[Round "1.5"]
[White "Wu, Chenshan"]
[Black "Maymo, Gazwan"]
[Result "1-0"]
[Annotator "NA"]
[ECO "E39"]
[WhiteElo "2011"]
[BlackElo "1789"]
[PlyCount "113"]
[EventDate "2025.04.12"]
[EventType "swiss"]
[EventCountry "AUT"]
[SourceTitle "playchess.com"]
[Source "ChessBase"]
[SourceQuality "1"]
[TimeControl "5400+30"]

1. d4 {[%emt 0:00:02]} Nf6 {[%emt 0:00:51]} 2. c4 {[%emt 0:00:07]} e6 {[%emt 0:01:09]} 3. Nc3 {[%emt 0:00:05]} Bb4 {[%emt 0:00:48]} 4. Qc2 {[%emt 0:00:06]} c5 {[%emt 0:01:19]} 5. dxc5 {[%emt 0:00:12]} O-O {[%emt 0:00:56]} 6. Bg5 {[%emt 0:00:44]} Bxc5 {[%emt 0:07:25]} 7. Nf3 {[%emt 0:00:36]} d5 {[%emt 0:01:29]} 8. cxd5 {[%emt 0:03:56]} exd5 {[%emt 0:00:43]} 9. e3 {[%emt 0:07:56]} Be6 {[%emt 0:01:56]} 10. Be2 {[%emt 0:01:27]} Nc6 {[%emt 0:03:20]} 11. O-O {[%emt 0:01:24]} Rc8 {[%emt 0:04:29]} 12. Rfd1 {[%emt 0:03:59]} Be7 {[%emt 0:06:38]} 13. Rac1 {[%emt 0:03:57]} Qa5 {[%emt 0:11:26]} 14. a3 {[%emt 0:05:40]} Rfd8 {[%emt 0:02:30]} 15. Qb1 {[%emt 0:14:06]} d4 {[%emt 0:12:39]} 16. exd4 {[%emt 0:03:03]} Nxd4 {[%emt 0:04:02]} 17. Nxd4 {[%emt 0:00:47]} Qxg5 {[%emt 0:00:37]} 18. Nxe6 {[%emt 0:00:19]} fxe6 {[%emt 0:00:33]} 19. Rxd8+ {[%emt 0:08:00]} Rxd8 {[%emt 0:01:33]} 20. Bc4 {[%emt 0:02:32]} Nd5 {[%emt 0:06:45]} 21. Bxd5 {[%emt 0:03:58]} exd5 {[%emt 0:00:18]} 22. Rd1 {[%emt 0:01:12]} d4 {[%emt 0:07:42]} 23. Ne2 {[%emt 0:00:55]} Qe5 {[%emt 0:01:38]} 24. Nc1 {[%emt 0:02:00]} Bd6 {[%emt 0:02:05]} 25. g3 {[%emt 0:00:30]} Qf6 {[%emt 0:02:13]} 26. Qe4 {[%emt 0:05:30]} Qe5 {[%emt 0:10:02]} 27. Qxd4 {[%emt 0:01:11]} Qxd4 {[%emt 0:00:38]} 28. Rxd4 {[%emt 0:00:09]} Be7 {[%emt 0:02:18]} 29. Rxd8+ {[%emt 0:00:13]} Bxd8 {[%emt 0:00:08]} 30. Nd3 {[%emt 0:00:16]} Bf6 {[%emt 0:00:54]} 31. b3 {[%emt 0:00:19]} Bd4 {[%emt 0:00:41]} 32. Kg2 {[%emt 0:00:18]} Kf7 {[%emt 0:00:12]} 33. Kf3 {[%emt 0:00:10]} Ke6 {[%emt 0:01:06]} 34. Ke4 {[%emt 0:00:11]} Bb6 {[%emt 0:00:32]} 35. f4 {[%emt 0:02:36]} g6 {[%emt 0:01:38]} 36. g4 {[%emt 0:06:25]} Bc7 {[%emt 0:03:17]} 37. h3 {[%emt 0:01:28]} Bd6 {[%emt 0:00:22]} 38. a4 {[%emt 0:01:05]} b6 {[%emt 0:00:31]} 39. Nb2 {[%emt 0:02:31]} Kf6 {[%emt 0:01:05]} 40. Nc4 {[%emt 0:00:50]} Bc7 {[%emt 0:00:27]} 41. Ne3 {[%emt 0:02:05]} Ke6 {[%emt 0:00:52]} 42. f5+ {[%emt 0:04:25]} gxf5+ {[%emt 0:00:33]} 43. gxf5+ {[%emt 0:00:20]} Kf7 {[%emt 0:00:19]} 44. Nd5 {[%emt 0:02:46]} Bd6 {[%emt 0:00:35]} 45. b4 {[%emt 0:00:16]} Bb8 {[%emt 0:00:46]} 46. b5 {[%emt 0:00:12]} Bd6 {[%emt 0:00:24]} 47. Ne3 {[%emt 0:01:17]} h5 {[%emt 0:00:49]} 48. Nc4 {[%emt 0:00:38]} Bc7 {[%emt 0:00:27]} 49. Ne5+ {[%emt 0:00:31]} Bxe5 {[%emt 0:00:46]} 50. Kxe5 {[%emt 0:00:08]} Ke7 {[%emt 0:00:12]} 51. f6+ {[%emt 0:00:06]} Kf7 {[%emt 0:00:10]} 52. h4 {[%emt 0:00:18]} Kf8 {[%emt 0:00:54]} 53. Ke6 {[%emt 0:00:13]} Ke8 {[%emt 0:00:14]} 54. f7+ {[%emt 0:00:10]} Kf8 {[%emt 0:00:12]} 55. Kf6 {[%emt 0:00:07]} a6 {[%emt 0:00:27]} 56. bxa6 {[%emt 0:00:07]} b5 {[%emt 0:00:18]} 57. a7 {[%emt 0:00:05]} 1-0

[Event "AUT-ch U16-Open 2025"]
[Site "Fuerstenfeld"]
[Date "2025.04.13"]
[Round "1.6"]
[White "Gruenwald, Beat"]
[Black "Fuertler, Oliver"]
[Result "1/2-1/2"]
[Annotator "NA"]
[ECO "B45"]
[WhiteElo "1727"]
[BlackElo "2008"]
[PlyCount "96"]
[EventDate "2025.04.12"]
[EventType "swiss"]
[EventCountry "AUT"]
[SourceTitle "playchess.com"]
[Source "ChessBase"]
[SourceQuality "1"]
[TimeControl "5400+30"]

1. e4 {[%emt 0:00:03]} c5 {[%emt 0:00:05]} 2. Nf3 {[%emt 0:00:05]} Nc6 {[%emt 0:00:05]} 3. d4 {[%emt 0:00:06]} cxd4 {[%emt 0:00:04]} 4. Nxd4 {[%emt 0:00:04]} Nf6 {[%emt 0:00:05]} 5. Nc3 {[%emt 0:00:06]} e6 {[%emt 0:00:04]} 6. Ndb5 {[%emt 0:00:28]} Bc5 {[%emt 0:00:09]} 7. Bf4 {[%emt 0:00:45]} O-O {[%emt 0:00:08]} 8. Bc7 {[%emt 0:01:59]} Qe7 {[%emt 0:00:05]} 9. Bd6 {[%emt 0:01:16]} Bxd6 {[%emt 0:00:02]} 10. Qxd6 {[%emt 0:00:15]} Qd8 {[%emt 0:00:06]} 11. Nc7 {[%emt 0:16:31]} Rb8 {[%emt 0:12:10]} 12. Be2 {[%emt 0:03:47]} a6 {[%emt 0:02:23]} 13. a4 {[%emt 0:00:38]} Nd4 {[%emt 0:20:07]} 14. Qxd4 {[%emt 0:05:59]} Qxc7 {[%emt 0:00:08]} 15. e5 {[%emt 0:02:08]} Ne8 {[%emt 0:01:53]} 16. Rd1 {[%emt 0:09:47]} f6 {[%emt 0:02:40]} 17. exf6 {[%emt 0:03:46]} Nxf6 {[%emt 0:00:40]} 18. Qd6 {[%emt 0:01:20]} Qxd6 {[%emt 0:01:05]} 19. Rxd6 {[%emt 0:00:09]} Ne8 {[%emt 0:00:28]} 20. Rb6 {[%emt 0:04:45]} Ra8 {[%emt 0:03:20]} 21. Ne4 {[%emt 0:04:31]} d5 {[%emt 0:02:32]} 22. Nc5 {[%emt 0:01:40]} Rf6 {[%emt 0:01:24]} 23. Rb3 {[%emt 0:06:50]} e5 {[%emt 0:05:41]} 24. Nxb7 {[%emt 0:07:26]} Bf5 {[%emt 0:00:22]} 25. Rc3 {[%emt 0:02:35]} Rb6 {[%emt 0:01:36]} 26. Na5 {[%emt 0:03:11]} Rxb2 {[%emt 0:00:26]} 27. Kd2 {[%emt 0:00:20]} Nd6 {[%emt 0:00:48]} 28. f3 {[%emt 0:02:56]} e4 {[%emt 0:06:38]} 29. Rc6 {[%emt 0:02:41]} exf3 {[%emt 0:03:01]} 30. gxf3 {[%emt 0:00:39]} Rd8 {[%emt 0:00:44]} 31. Bxa6 {[%emt 0:03:12]} Nc4+ {[%emt 0:00:12]} 32. Nxc4 {[%emt 0:01:41]} dxc4+ {[%emt 0:00:16]} 33. Ke3 {[%emt 0:00:47]} Rxc2 {[%emt 0:01:56]} 34. Bxc4+ {[%emt 0:02:46]} Kf8 {[%emt 0:00:25]} 35. Bb5 {[%emt 0:00:25]} Ra2 {[%emt 0:01:17]} 36. Kf4 {[%emt 0:02:44]} Bc2 {[%emt 0:00:35]} 37. Rc1 {[%emt 0:02:47]} Bxa4 {[%emt 0:01:08]} 38. Bxa4 {[%emt 0:00:28]} Rxa4+ {[%emt 0:00:17]} 39. R1c4 {[%emt 0:01:35]} Rd4+ {[%emt 0:00:26]} 40. Rxd4 {[%emt 0:00:05]} Rxd4+ {[%emt 0:00:09]} 41. Kg3 {[%emt 0:03:23]} Kf7 {[%emt 0:00:09]} 42. Rc7+ {[%emt 0:00:36]} Kg6 {[%emt 0:00:15]} 43. Rc6+ {[%emt 0:00:39]} Kh5 {[%emt 0:00:52]} 44. Rc5+ {[%emt 0:00:21]} g5 {[%emt 0:00:28]} 45. Rf5 {[%emt 0:01:18]} h6 {[%emt 0:00:35]} 46. Rf6 {[%emt 0:01:03]} Ra4 {[%emt 0:00:20]} 47. Rf5 {[%emt 0:00:25]} Ra3 {[%emt 0:35:41]} 48. Rd5 {[%emt 0:00:29]} Ra4 {[%emt 0:00:00]} 1/2-1/2

[Event "AUT-ch U16-Open 2025"]
[Site "Fuerstenfeld"]
[Date "2025.04.13"]
[Round "1.7"]
[White "Haselsberger, Armin"]
[Black "Stoegerer, Felix"]
[Result "1/2-1/2"]
[Annotator "NA"]
[ECO "E04"]
[WhiteElo "2004"]
[BlackElo "1726"]
[PlyCount "132"]
[EventDate "2025.04.12"]
[EventType "swiss"]
[EventCountry "AUT"]
[SourceTitle "playchess.com"]
[Source "ChessBase"]
[SourceQuality "1"]
[TimeControl "5400+30"]

1. d4 {[%emt 0:00:34]} Nf6 {[%emt 0:00:29]} 2. c4 {[%emt 0:00:29]} e6 {[%emt 0:00:09]} 3. Nf3 {[%emt 0:00:41]} d5 {[%emt 0:00:11]} 4. g3 {[%emt 0:00:28]} dxc4 {[%emt 0:01:02]} 5. Bg2 {[%emt 0:00:59]} Nc6 {[%emt 0:01:59]} 6. O-O {[%emt 0:02:14]} Rb8 {[%emt 0:02:51]} 7. a4 {[%emt 0:14:35]} b6 {[%emt 0:04:17]} 8. e3 {[%emt 0:07:22]} Bb7 {[%emt 0:14:54]} 9. Nbd2 {[%emt 0:01:49]} Na5 {[%emt 0:06:21]} 10. Qc2 {[%emt 0:01:34]} Nd5 {[%emt 0:09:26]} 11. Nxc4 {[%emt 0:11:41]} Nb4 {[%emt 0:05:05]} 12. Qc3 {[%emt 0:02:56]} Nxc4 {[%emt 0:02:25]} 13. Qxc4 {[%emt 0:00:36]} Ba6 {[%emt 0:00:49]} 14. Qc3 {[%emt 0:00:00]} Bxf1 {[%emt 0:01:11]} 15. Bxf1 {[%emt 0:00:01]} c6 {[%emt 0:04:59]} 16. Bd2 {[%emt 0:02:40]} a5 {[%emt 0:02:19]} 17. Ne5 {[%emt 0:03:14]} Rc8 {[%emt 0:05:24]} 18. Qc1 {[%emt 0:09:42]} Bd6 {[%emt 0:03:38]} 19. Bxb4 {[%emt 0:12:33]} Bxe5 {[%emt 0:02:46]} 20. dxe5 {[%emt 0:04:25]} axb4 {[%emt 0:00:13]} 21. Qc4 {[%emt 0:09:11]} Qd2 {[%emt 0:06:59]} 22. Bg2 {[%emt 0:03:26]} O-O {[%emt 0:01:29]} 23. b3 {[%emt 0:01:02]} Qc3 {[%emt 0:03:07]} 24. Qxc3 {[%emt 0:00:29]} bxc3 {[%emt 0:00:01]} 25. Rc1 {[%emt 0:00:01]} Rfd8 {[%emt 0:04:01]} 26. Be4 {[%emt 0:02:04]} c5 {[%emt 0:05:17]} 27. Rxc3 {[%emt 0:00:07]} Kf8 {[%emt 0:01:01]} 28. Kg2 {[%emt 0:03:54]} h6 {[%emt 0:01:05]} 29. h4 {[%emt 0:01:33]} h5 {[%emt 0:01:03]} 30. Kf3 {[%emt 0:00:07]} Rd2 {[%emt 0:00:38]} 31. b4 {[%emt 0:01:44]} Ra2 {[%emt 0:02:57]} 32. a5 {[%emt 0:01:01]} bxa5 {[%emt 0:01:08]} 33. bxc5 {[%emt 0:00:01]} Ke7 {[%emt 0:01:58]} 34. c6 {[%emt 0:00:01]} Rc7 {[%emt 0:00:55]} 35. Rc5 {[%emt 0:02:15]} a4 {[%emt 0:02:01]} 36. Ra5 {[%emt 0:01:36]} a3 {[%emt 0:01:46]} 37. g4 {[%emt 0:00:51]} hxg4+ {[%emt 0:01:38]} 38. Kxg4 {[%emt 0:00:01]} f5+ {[%emt 0:01:10]} 39. exf6+ {[%emt 0:00:06]} gxf6 {[%emt 0:00:09]} 40. Bf3 {[%emt 0:00:42]} Ra1 {[%emt 0:00:52]} 41. Kh3 {[%emt 0:00:39]} f5 {[%emt 0:00:34]} 42. e4 {[%emt 0:01:18]} Rxc6 {[%emt 0:00:36]} 43. exf5 {[%emt 0:00:12]} Rc3 {[%emt 0:00:12]} 44. Kg2 {[%emt 0:00:17]} exf5 {[%emt 0:00:32]} 45. Rxf5 {[%emt 0:00:52]} a2 {[%emt 0:00:38]} 46. Ra5 {[%emt 0:00:01]} Rc4 {[%emt 0:00:41]} 47. h5 {[%emt 0:01:09]} Rc2 {[%emt 0:00:28]} 48. Bd5 {[%emt 0:00:07]} Kf6 {[%emt 0:00:26]} 49. Ra6+ {[%emt 0:00:57]} Ke5 {[%emt 0:01:10]} 50. Bf7 {[%emt 0:00:22]} Rg1+ {[%emt 0:00:00]} 51. Kxg1 {[%emt 0:00:01]} Rc1+ {[%emt 0:00:04]} 52. Kg2 {[%emt 0:01:50]} a1=Q {[%emt 0:00:06]} 53. Rxa1 {[%emt 0:00:00]} Rxa1 {[%emt 0:00:05]} 54. h6 {[%emt 0:00:00]} Kf6 {[%emt 0:00:18]} 55. h7 {[%emt 0:00:00]} Kg7 {[%emt 0:00:16]} 56. Bg8 {[%emt 0:00:00]} Ra3 {[%emt 0:00:56]} 57. f3 {[%emt 0:00:00]} Ra6 {[%emt 0:00:18]} 58. f4 {[%emt 0:00:08]} Rh6 {[%emt 0:00:19]} 59. Kg3 {[%emt 0:00:12]} Rg6+ {[%emt 0:00:29]} 60. Kf3 {[%emt 0:00:10]} Rh6 {[%emt 0:00:24]} 61. Kg4 {[%emt 0:00:22]} Rg6+ {[%emt 0:00:15]} 62. Kf5 {[%emt 0:00:01]} Rb6 {[%emt 0:00:20]} 63. Ke5 {[%emt 0:00:32]} Ra6 {[%emt 0:00:46]} 64. f5 {[%emt 0:00:24]} Ra5+ {[%emt 0:00:31]} 65. Ke6 {[%emt 0:01:24]} Rxf5 {[%emt 0:01:03]} 66. Kxf5 {[%emt 0:00:03]} Kh8 {[%emt 0:00:08]} 1/2-1/2

[Event "AUT-ch U16-Open 2025"]
[Site "Fuerstenfeld"]
[Date "2025.04.13"]
[Round "1.8"]
[White "Rella, Mario"]
[Black "Nicolussi, Hieronymus"]
[Result "0-1"]
[Annotator "NA"]
[ECO "E67"]
[WhiteElo "1677"]
[BlackElo "1999"]
[PlyCount "54"]
[EventDate "2025.04.12"]
[EventType "swiss"]
[EventCountry "AUT"]
[SourceTitle "playchess.com"]
[Source "ChessBase"]
[SourceQuality "1"]
[TimeControl "5400+30"]

1. d4 {[%emt 0:00:10]} Nf6 {[%emt 0:00:08]} 2. Nf3 {[%emt 0:00:14]} g6 {[%emt 0:00:06]} 3. g3 {[%emt 0:00:17]} Bg7 {[%emt 0:00:12]} 4. Bg2 {[%emt 0:00:11]} O-O {[%emt 0:00:06]} 5. O-O {[%emt 0:00:15]} d6 {[%emt 0:00:06]} 6. c4 {[%emt 0:02:35]} Nbd7 {[%emt 0:00:28]} 7. Nc3 {[%emt 0:01:49]} e5 {[%emt 0:00:09]} 8. h3 {[%emt 0:04:15]} Re8 {[%emt 0:01:41]} 9. e4 {[%emt 0:00:32]} b6 {[%emt 0:01:59]} 10. Re1 {[%emt 0:02:11]} Bb7 {[%emt 0:06:07]} 11. d5 {[%emt 0:08:00]} Nc5 {[%emt 0:00:30]} 12. b4 {[%emt 0:01:15]} Ncd7 {[%emt 0:00:14]} 13. Be3 {[%emt 0:01:43]} Nh5 {[%emt 0:03:00]} 14. Qd2 {[%emt 0:15:10]} a5 {[%emt 0:02:43]} 15. a3 {[%emt 0:01:50]} f5 {[%emt 0:01:51]} 16. exf5 {[%emt 0:02:21]} gxf5 {[%emt 0:01:11]} 17. Ng5 {[%emt 0:04:41]} f4 {[%emt 0:27:54]} 18. gxf4 {[%emt 0:11:10]} exf4 {[%emt 0:00:18]} 19. Bxf4 {[%emt 0:00:13]} Qf6 {[%emt 0:03:17]} 20. Ne2 {[%emt 0:01:22]} Nxf4 {[%emt 0:03:45]} 21. Ne4 {[%emt 0:02:22]} Rxe4 {[%emt 0:05:29]} 22. Bxe4 {[%emt 0:01:24]} Nxh3+ {[%emt 0:01:35]} 23. Kh2 {[%emt 0:00:33]} Qh4 {[%emt 0:01:40]} 24. Ng3 {[%emt 0:01:05]} Bxa1 {[%emt 0:02:33]} 25. Nf5 {[%emt 0:00:55]} Be5+ {[%emt 0:01:57]} 26. Ng3 {[%emt 0:00:25]} Nxf2+ {[%emt 0:00:33]} 27. Kg1 {[%emt 0:01:14]} Qxg3+ {[%emt 0:00:16]} 0-1